bitfinex/quotes_SOLUSD_20250714
["timestamp","ask_amount","ask_price","bid_price","bid_amount"]
[1752507964996,0.60757032,164.4,164.36,0.69]
[1752507965885,0.60757032,164.4,164.37,0.69]
[1752507966816,0.60757032,164.4,164.38,0.69]
[1752507967024,31.72,164.42,164.39,0.69]
[1752507967189,31.72,164.42,164.36,28.20025518]
[1752507967388,31.72,164.42,164.4,0.69]
[1752507967586,31.72,164.42,164.38,0.69]
[1752507968005,31.72,164.42,164.39,0.69]
[1752507968318,31.72,164.42,164.4,0.69]
[1752507968483,0.60757032,164.44,164.41,17.47468397]
[1752507968688,31.72,164.45,164.42,0.69]
[1752507968911,31.72,164.45,164.43,0.69]
[1752507969117,31.72,164.45,164.44,0.69]
[1752507969616,0.60757032,164.47,164.44,0.69]
[1752507970200,0.60757032,164.47,164.45,0.69]
[1752507970588,45.888045,164.48,164.46,0.69]
[1752507970790,45.888045,164.48,164.47,0.69]
[1752507971211,45.888045,164.48,164.44,17.47468397]
[1752507971414,45.888045,164.48,164.45,0.69]
[1752507971823,45.888045,164.48,164.46,0.69]
[1752507972200,45.888045,164.48,164.47,0.69]
[1752507972928,45.888045,164.48,164.47,17.47468397]
[1752507972929,14.148045,164.48,164.47,17.47468397]
[1752507973822,14.148045,164.48,164.47,30.40205518]
[1752507975137,14.148045,164.48,164.47,18.98648397]
[1752507975436,14.208045,164.48,164.47,30.40205518]
[1752507975937,14.208045,164.48,164.47,36.70495518]
[1752507976531,14.208045,164.48,164.47,18.98648397]
[1752507978223,14.208045,164.48,164.45,0.69]
[1752507978611,14.208045,164.48,164.46,0.69]
[1752507979049,14.208045,164.48,164.44,17.47468397]
[1752507979217,14.208045,164.48,164.45,0.69]
[1752507979414,14.208045,164.48,164.43,2.3383]
[1752507979415,0.60757032,164.47,164.43,2.3383]
[1752507979713,0.60757032,164.47,164.44,0.69]
[1752507980129,0.60757032,164.47,164.45,0.69]
[1752507980434,45.888045,164.48,164.46,16.78468397]
[1752507980623,14.208045,164.48,164.47,17.47468397]
[1752507982133,14.208045,164.48,164.44,0.69]
[1752507982318,14.208045,164.48,164.45,17.47468397]
[1752507982637,14.208045,164.48,164.46,0.69]
[1752507982851,14.208045,164.48,164.47,11.41557121]
[1752507983018,14.208045,164.48,164.47,12.10557121]
[1752507983218,14.208045,164.48,164.47,0.69]
[1752507983638,14.208045,164.48,164.47,12.10557121]
[1752507983840,14.208045,164.48,164.47,12.71358482]
[1752507984942,14.208045,164.48,164.47,44.08269758]
[1752507985247,14.208045,164.48,164.47,55.49826879]
[1752507986723,14.208045,164.48,164.47,145.09826879]
[1752507986928,14.208045,164.48,164.47,54.89025518]
[1752507987131,14.208045,164.48,164.47,61.57840498]
[1752507987442,12.541445,164.48,164.47,68.06910498]
[1752507988245,1.6439,164.61,164.48,16.78468397]
[1752507988423,0.60757032,164.62,164.56,11.41557121]
[1752507988821,0.60757032,164.62,164.56,0.68]
[1752507989024,1.32757032,164.62,164.56,0.68]
[1752507989420,1.32757032,164.62,164.57,0.68]
[1752507989741,27.32757032,164.62,164.57,0.68]
[1752507989957,0.60757032,164.62,164.57,28.88025518]
[1752507990167,31.66,164.63,164.57,29.48789934]
[1752507991056,31.66,164.63,164.57,28.88025518]
[1752507991439,31.66,164.63,164.57,60.95669681]
[1752507991647,0.06,164.64,164.57,60.95669681]
[1752507992353,0.06,164.64,164.57,92.61669681]
[1752507992534,0.06,164.64,164.57,66.61669681]
[1752507992734,0.06,164.64,164.61,42.78468397]
[1752507992943,0.06,164.64,164.63,28.20025518]
[1752507993361,0.06,164.64,164.63,28.88025518]
[1752507993677,0.06,164.64,164.63,16.78468397]
[1752507993837,0.06,164.64,164.62,16.78468397]
[1752507994237,0.06,164.64,164.59,0.68]
[1752507994540,0.72,164.63,164.59,16.78468397]
[1752507994746,1.32757032,164.62,164.57,0.68]
[1752507995156,0.72,164.61,164.55,0.68]
[1752507995358,0.60757032,164.6,164.53,16.78468397]
[1752507995560,0.72,164.59,164.52,0.68]
[1752507995750,0.60757032,164.58,164.5,0.68]
[1752507996275,0.72,164.57,164.5,0.68]
[1752507996442,0.60757032,164.56,164.49,17.46468397]
[1752507996843,0.72,164.57,164.49,17.46468397]
[1752507997438,0.72,164.57,164.49,28.88025518]
[1752507997646,0.72,164.57,164.49,17.46468397]
[1752507999145,6.4036,164.56,164.49,17.46468397]
[1752507999447,0.60757032,164.55,164.49,17.46468397]
[1752507999862,0.72,164.54,164.47,17.46468397]
[1752508000057,1.32757032,164.54,164.47,17.46468397]
[1752508000665,1.32757032,164.54,164.48,0.68]
[1752508000848,1.32757032,164.54,164.49,16.78468397]
[1752508001038,26.72,164.53,164.47,16.78468397]
[1752508001237,0.60757032,164.52,164.47,16.78468397]
[1752508001452,0.72,164.51,164.47,16.78468397]
[1752508002970,0.72,164.5,164.44,17.46468397]
[1752508003176,1.32757032,164.52,164.44,16.78468397]
[1752508003379,1.32757032,164.52,164.45,0.68]
[1752508003681,0.60757032,164.52,164.45,0.68]
[1752508004475,0.72,164.51,164.45,0.68]
[1752508004685,6.07902735,164.5,164.45,0.68]
[1752508004857,6.07869471,164.51,164.47,16.78468397]
[1752508005082,6.07869471,164.51,164.47,17.46468397]
[1752508006694,6.07828835,164.52,164.47,17.46468397]
[1752508006906,0.60757032,164.51,164.48,0.68]
[1752508008392,0.60757032,164.51,164.46,0.68]
[1752508008604,6.07828835,164.52,164.47,0.68]
[1752508008895,6.07828835,164.52,164.48,0.68]
[1752508009213,6.07828835,164.52,164.46,16.78468397]
[1752508009214,6.07828835,164.52,164.49,0.68]
[1752508009799,6.07828835,164.52,164.48,16.78468397]
[1752508009994,6.07828835,164.52,164.48,17.46468397]
[1752508010193,6.79828835,164.52,164.48,17.46468397]
[1752508010695,0.60757032,164.51,164.46,17.46468397]
[1752508010872,0.72,164.5,164.44,0.68]
[1752508011070,0.60757032,164.49,164.45,16.78468397]
[1752508011274,0.60757032,164.49,164.45,17.46468397]
[1752508011900,0.60757032,164.49,164.46,0.68]
[1752508012199,0.60757032,164.51,164.46,0.68]
[1752508012495,1.32757032,164.51,164.46,0.68]
[1752508012702,6.07902735,164.5,164.47,0.68]
[1752508013071,6.68635011,164.51,164.47,0.68]
[1752508014002,7.40635011,164.51,164.47,0.68]
[1752508014498,0.60757032,164.53,164.48,0.68]
[1752508014683,26.0,164.54,164.48,17.46468397]
[1752508014878,8.58497032,164.56,164.52,16.78468397]
[1752508015095,31.66,164.57,164.53,0.68]
[1752508015279,31.66,164.57,164.54,0.68]
[1752508015791,32.26757032,164.57,164.54,0.68]
[1752508015998,38.34411555,164.57,164.54,0.68]
[1752508016300,38.34411555,164.57,164.52,0.68]
[1752508016498,38.34411555,164.57,164.52,12.09557121]
[1752508016692,38.34411555,164.57,164.53,0.68]
[1752508017495,38.34411555,164.57,164.54,0.68]
[1752508017697,38.34411555,164.57,164.51,0.68]
[1752508017698,39.06411555,164.57,164.51,0.68]
[1752508018579,39.06411555,164.57,164.5,16.78468397]
[1752508018580,0.66,164.56,164.5,16.78468397]
[1752508018807,0.60757032,164.55,164.5,16.78468397]
[1752508019101,0.66,164.54,164.47,0.68]
[1752508019304,0.60757032,164.53,164.47,0.68]
[1752508020225,6.07828835,164.52,164.47,0.68]
[1752508020519,6.6852436,164.54,164.49,16.78468397]
[1752508020709,6.07767328,164.54,164.5,0.68]
[1752508020912,6.07767328,164.54,164.51,0.68]
[1752508021116,0.60757032,164.56,164.52,0.68]
[1752508021598,0.60757032,164.56,164.53,0.68]
[1752508021799,0.60757032,164.56,164.54,0.68]
[1752508022315,6.68444105,164.56,164.54,0.68]
[1752508023001,6.68444105,164.56,164.52,0.68]
[1752508023202,7.34444105,164.56,164.51,16.78468397]
[1752508023394,6.68444105,164.56,164.52,17.46468397]
[1752508023599,0.60757032,164.56,164.53,0.68]
[1752508023801,31.7,164.58,164.54,16.78468397]
[1752508024005,31.7,164.58,164.56,16.78468397]
[1752508024222,0.06,164.58,164.57,17.46468397]
[1752508024405,0.06,164.58,164.57,28.88025518]
[1752508026405,0.06,164.58,164.57,29.48789934]
[1752508026904,0.06,164.58,164.57,35.56434097]
[1752508027926,0.06,164.58,164.57,37.20274097]
[1752508028126,0.06,164.64,164.61,42.78468397]
[1752508028422,1.6078,164.72,164.65,16.78468397]
[1752508028617,0.06,164.73,164.7,16.78468397]
[1752508029009,0.72,164.71,164.66,16.78468397]
[1752508029202,0.06,164.71,164.67,12.09557121]
[1752508029406,0.06,164.71,164.69,16.78468397]
[1752508029910,0.06,164.71,164.7,17.46468397]
[1752508030120,0.06,164.71,164.7,16.78468397]
[1752508030622,0.06,164.71,164.68,16.78468397]
[1752508030623,0.72,164.71,164.68,16.78468397]
[1752508030807,1.32757032,164.71,164.68,16.78468397]
[1752508031009,0.72,164.71,164.68,16.78468397]
[1752508031228,0.72,164.71,164.66,16.78468397]
[1752508031427,0.06,164.71,164.68,16.78468397]
[1752508031626,0.66,164.7,164.68,16.78468397]
[1752508031927,0.06,164.71,164.66,16.78468397]
[1752508032105,0.06,164.71,164.66,0.68]
[1752508032432,6.13127678,164.71,164.66,0.68]
[1752508032928,6.13127678,164.71,164.68,16.78468397]
[1752508033508,0.06,164.71,164.67,0.68]
[1752508033819,0.06,164.71,164.68,0.68]
[1752508034026,0.66,164.7,164.65,0.68]
[1752508034431,0.06,164.71,164.67,16.78468397]
[1752508034618,6.13130244,164.71,164.67,16.78468397]
[1752508034810,6.79130244,164.71,164.67,16.78468397]
[1752508036333,6.79130244,164.71,164.64,11.41557121]
[1752508036511,6.79130244,164.71,164.67,0.68]
[1752508036706,6.79130244,164.71,164.65,0.68]
[1752508036909,1.26757032,164.7,164.63,27.2874227]
[1752508037110,0.06,164.71,164.67,16.78468397]
[1752508037347,0.06,164.71,164.69,16.78468397]
[1752508037513,0.06,164.71,164.69,28.20025518]
[1752508037831,0.06,164.71,164.69,17.46468397]
[1752508039509,0.06,164.71,164.68,16.78468397]
[1752508040140,0.06,164.71,164.68,0.68]
[1752508040937,0.06,164.71,164.66,16.78468397]
[1752508041127,0.06,164.71,164.7,16.78468397]
[1752508041846,0.06,164.71,164.7,0.68]
[1752508042022,0.06,164.71,164.7,12.09557121]
[1752508042331,0.06,164.71,164.7,28.88025518]
[1752508043915,0.06,164.71,164.7,17.46468397]
[1752508044223,0.06,164.71,164.7,28.88025518]
[1752508044741,0.06,164.71,164.7,17.46468397]
[1752508044926,0.06,164.71,164.7,28.88025518]
[1752508045322,0.06,164.71,164.7,17.46468397]
[1752508045936,0.06,164.71,164.7,16.78468397]
[1752508046319,0.06,164.71,164.7,29.48741972]
[1752508046519,0.06,164.73,164.72,22.85559217]
[1752508046745,0.06,164.73,164.72,23.46268299]
[1752508046930,0.06,164.73,164.72,34.8782542]
[1752508047129,0.06,164.73,164.72,18.07177479]
[1752508047438,0.06,164.73,164.72,17.46468397]
[1752508048243,0.06,164.73,164.72,28.88025518]
[1752508049424,0.06,164.73,164.72,66.55116338]
[1752508049628,0.06,164.73,164.72,67.1582542]
[1752508049845,0.06,164.73,164.72,61.087346]
[1752508050354,0.06,164.73,164.72,67.1582542]
[1752508051640,0.06,164.73,164.72,55.74268299]
[1752508051850,0.06,164.73,164.72,67.1582542]
[1752508052356,0.06,164.73,164.72,61.087346]
[1752508053148,0.06,164.73,164.72,49.67177479]
[1752508053527,0.77,164.73,164.72,16.78468397]
[1752508053731,0.06,164.73,164.72,16.78468397]
[1752508054135,8.7058,164.73,164.72,16.78468397]
[1752508054342,9.31337032,164.73,164.63,89.6]
[1752508054553,0.71,164.72,164.63,0.68]
[1752508054749,0.60757032,164.71,164.63,0.68]
[1752508054952,6.78164541,164.7,164.63,0.68]
[1752508055157,1.31757032,164.69,164.6,0.68]
[1752508055341,0.71,164.68,164.61,16.78468397]
[1752508055542,26.60757032,164.67,164.58,31.62]
[1752508055739,0.71,164.66,164.59,0.68]
[1752508056143,8.70487032,164.65,164.6,16.78468397]
[1752508056339,0.71,164.64,164.6,16.78468397]
[1752508056534,0.71,164.64,164.56,0.68]
[1752508056535,0.60757032,164.64,164.56,0.68]
[1752508056840,6.07385811,164.64,164.57,16.78468397]
[1752508057037,6.07385811,164.64,164.58,0.68]
[1752508057234,6.68142843,164.64,164.58,0.68]
[1752508057538,38.4024769,164.68,164.62,16.78468397]
[1752508057750,38.4024769,164.68,164.62,18.07214357]
[1752508057965,32.33,164.68,164.62,18.07214357]
[1752508058142,34.23787032,164.69,164.64,16.78468397]
[1752508058143,7.6303,164.69,164.64,16.78468397]
[1752508058344,1.5427,164.69,164.65,0.68]
[1752508058547,1.5427,164.69,164.67,16.78468397]
[1752508058939,1.31757032,164.68,164.62,0.68]
[1752508059145,0.71,164.68,164.61,16.78468397]
[1752508059338,1.21,164.68,164.61,17.39218047]
[1752508059662,1.31757032,164.67,164.61,16.78468397]
[1752508060338,0.71,164.66,164.59,58.24757032]
[1752508060673,0.60757032,164.65,164.6,16.78468397]
[1752508060882,6.8063,164.64,164.57,16.78468397]
[1752508061052,7.39179737,164.63,164.57,16.78468397]
[1752508061255,0.71,164.62,164.55,17.49468397]
[1752508061557,1.5455,164.6,164.55,0.03]
[1752508061765,1.31757032,164.59,164.55,0.03]
[1752508062169,0.71,164.58,164.55,0.03]
[1752508062466,0.60757032,164.57,164.55,0.03]
[1752508062969,6.78681088,164.56,164.55,0.03]
[1752508063664,0.71,164.56,164.55,0.03]
[1752508063863,6.07649994,164.57,164.55,0.03]
[1752508064365,6.07610838,164.58,164.55,0.03]
[1752508064754,6.78610838,164.58,164.55,0.03]
[1752508064952,0.60757032,164.59,164.55,0.03]
[1752508064953,6.68337938,164.59,164.55,0.03]
[1752508065350,0.71,164.58,164.55,0.03]
[1752508065550,0.60757032,164.57,164.55,0.03]
[1752508066076,0.71,164.56,164.55,0.03]
[1752508066774,26.71,164.56,164.55,0.03]
[1752508066947,32.78681088,164.56,164.55,0.03]
[1752508067155,33.3943812,164.56,164.55,0.03]
[1752508067676,6.5069,164.55,164.47,0.68]
[1752508067855,1.31757032,164.54,164.45,16.78468397]
[1752508068179,0.71,164.53,164.45,16.78468397]
[1752508068475,58.26757032,164.52,164.45,16.78468397]
[1752508068667,2.2918,164.51,164.45,16.78468397]
[1752508068855,0.60757032,164.5,164.45,16.78468397]
[1752508069177,6.07939692,164.49,164.45,0.68]
[1752508069554,6.07939692,164.49,164.46,0.68]
[1752508069958,6.07902735,164.5,164.45,16.78468397]
[1752508070267,1.31757032,164.49,164.43,16.78468397]
[1752508070446,0.60757032,164.49,164.43,0.68]
[1752508071756,6.68698569,164.49,164.43,0.68]
[1752508072768,6.68698569,164.49,164.42,16.78468397]
[1752508073082,0.71,164.48,164.42,16.78468397]
[1752508073285,0.60757032,164.47,164.42,16.78468397]
[1752508073467,1.31757032,164.47,164.42,0.68]
[1752508073987,6.79050589,164.46,164.4,17.49468397]
[1752508074364,0.60757032,164.45,164.4,17.49468397]
[1752508074565,1.31757032,164.45,164.4,17.49468397]
[1752508074760,0.71,164.44,164.4,0.03]
[1752508075194,0.60757032,164.45,164.41,17.46468397]
[1752508075492,0.60757032,164.45,164.42,0.68]
[1752508075994,38.5741,164.5,164.43,0.68]
[1752508076161,0.60757032,164.49,164.44,16.78468397]
[1752508076362,0.60757032,164.49,164.44,17.46468397]
[1752508076599,7.39723258,164.49,164.44,17.46468397]
[1752508076893,0.71,164.48,164.44,16.78468397]
[1752508077461,0.60757032,164.49,164.46,16.78468397]
[1752508077666,1.5818,164.51,164.48,16.78468397]
[1752508077882,1.5818,164.51,164.48,17.46468397]
[1752508078261,1.5818,164.51,164.49,0.68]
[1752508078884,6.07802446,164.53,164.49,0.68]
[1752508079783,6.73802446,164.53,164.48,16.78468397]
[1752508079978,0.66,164.52,164.48,16.78468397]
[1752508080396,0.66,164.51,164.45,18.30698332]
[1752508080596,0.66,164.51,164.43,0.60816152]
[1752508080597,0.60757032,164.5,164.43,18.30698332]
[1752508080790,0.66,164.49,164.44,16.78468397]
[1752508081113,1.26757032,164.48,164.4,12.07989004]
[1752508081272,2.2825,164.47,164.41,16.78468397]
[1752508081472,2.2825,164.47,164.41,17.45468397]
[1752508081888,8.36264741,164.47,164.41,28.83457401]
[1752508082081,0.60757032,164.46,164.41,17.45468397]
[1752508082274,7.70264741,164.47,164.41,16.78468397]
[1752508082474,6.802,164.45,164.4,0.03]
[1752508082682,6.802,164.45,164.41,0.03]
[1752508082890,37.822,164.45,164.41,0.7]
[1752508083609,0.60757032,164.46,164.42,0.67]
[1752508083841,1.6225,164.47,164.43,17.45468397]
[1752508084102,12.41316275,164.49,164.45,16.78468397]
[1752508084482,12.41316275,164.49,164.45,0.67]
[1752508084799,13.07316275,164.49,164.43,17.45468397]
[1752508085103,1.26757032,164.48,164.41,16.81468397]
[1752508085304,1.26757032,164.48,164.41,0.03]
[1752508085305,26.0,164.46,164.41,0.03]
[1752508085605,0.60757032,164.45,164.41,0.03]
[1752508085778,6.08198515,164.42,164.41,0.03]
[1752508086103,7.34955547,164.42,164.41,0.03]
[1752508087395,1.6437,164.43,164.41,0.03]
[1752508087923,1.26757032,164.42,164.41,0.03]
[1752508088295,0.60757032,164.42,164.41,0.03]
[1752508088488,1.26757032,164.42,164.41,0.03]
[1752508089302,1.26757032,164.42,164.4,0.03]
[1752508089303,7.92037032,164.42,164.4,0.03]
[1752508089498,32.42,164.41,164.4,0.03]
[1752508089895,38.50235508,164.41,164.4,0.03]
[1752508090226,38.50235508,164.41,164.39,0.03]
[1752508090389,1.26757032,164.4,164.39,1e-08]
[1752508091397,1.26757032,164.4,164.38,0.1]
[1752508091618,0.66,164.39,164.33,0.03]
[1752508091793,0.60757032,164.38,164.33,0.03]
[1752508092000,6.0842054,164.36,164.33,0.03]
[1752508092211,1.26757032,164.35,164.33,0.03]
[1752508092801,0.60757032,164.35,164.33,0.03]
[1752508093491,31.76,164.37,164.34,0.67]
[1752508093807,1.26757032,164.36,164.33,0.03]
[1752508094005,7.35195281,164.36,164.33,0.03]
[1752508094207,0.60757032,164.36,164.33,0.7]
[1752508094393,7.35180519,164.36,164.33,0.03]
[1752508094706,33.14757032,164.36,164.33,0.03]
[1752508094904,33.14757032,164.36,164.33,0.7]
[1752508094905,32.48757032,164.36,164.33,0.7]
[1752508095130,0.60757032,164.37,164.34,0.67]
[1752508095327,38.57078435,164.39,164.35,0.67]
[1752508095819,0.66,164.38,164.3,0.1]
[1752508096134,6.0842054,164.36,164.3,0.1]
[1752508096331,0.60757032,164.37,164.3,23.84967127]
[1752508096534,0.60757032,164.37,164.31,34.44803016]
[1752508096738,0.66,164.38,164.31,16.78468397]
[1752508096739,0.60757032,164.38,164.31,16.78468397]
[1752508097045,0.60757032,164.38,164.33,16.78468397]
[1752508097231,39.23074651,164.39,164.31,16.78468397]
[1752508097424,39.23074651,164.39,164.32,17.66334619]
[1752508097635,0.66,164.38,164.3,22.97109606]
[1752508097830,0.60757032,164.37,164.31,18.33334619]
[1752508098026,6.0842054,164.36,164.31,0.67]
[1752508098219,1.26757032,164.35,164.3,16.88468397]
[1752508098420,0.66,164.34,164.3,0.1]
[1752508098820,0.60757032,164.35,164.3,0.77]
[1752508099026,1.26757032,164.35,164.3,0.77]
[1752508100143,7.35244963,164.35,164.3,17.55468397]
[1752508100350,0.66,164.34,164.3,0.1]
[1752508100529,0.60757032,164.33,164.3,0.1]
[1752508100725,0.60757032,164.34,164.3,0.77]
[1752508100929,1.26757032,164.34,164.3,0.77]
[1752508101427,1.26757032,164.34,164.3,0.1]
[1752508101928,27.26757032,164.36,164.32,16.78468397]
[1752508102134,0.60757032,164.37,164.32,17.45468397]
[1752508102523,0.60757032,164.37,164.33,0.67]
[1752508102920,0.60757032,164.38,164.34,0.67]
[1752508103122,33.14757032,164.39,164.34,18.33334619]
[1752508103348,0.66,164.38,164.32,17.45468397]
[1752508103538,0.60757032,164.37,164.32,35.11803016]
[1752508103726,0.60757032,164.38,164.32,17.45468397]
[1752508103933,0.66,164.37,164.32,17.45468397]
[1752508104533,6.74384496,164.37,164.32,17.45468397]
[1752508104848,0.60757032,164.38,164.33,0.67]
[1752508105151,1.26757032,164.38,164.33,0.67]
[1752508105325,0.66,164.38,164.34,16.78468397]
[1752508105648,0.66,164.38,164.3,0.1]
[1752508105649,0.66,164.37,164.3,0.1]
[1752508105830,0.60757032,164.36,164.3,0.1]
[1752508106036,39.7967,164.35,164.3,0.1]
[1752508106245,6.08531613,164.33,164.3,0.1]
[1752508106426,0.60757032,164.32,164.3,0.1]
[1752508106621,31.98,164.31,164.3,0.1]
[1752508106825,32.64,164.31,164.3,0.1]
[1752508108135,38.72605684,164.31,164.3,0.1]
[1752508109246,1.26757032,164.33,164.3,0.1]
[1752508109550,31.98,164.31,164.3,0.1]
[1752508109753,33.24757032,164.31,164.3,0.1]
[1752508110131,39.33362716,164.31,164.3,0.1]
[1752508111755,39.33362716,164.31,164.26,0.03]
[1752508112054,6.2766,164.29,164.26,0.03]
[1752508112232,6.0875388,164.27,164.26,1e-08]
[1752508112437,6.0875388,164.27,164.25,0.03]
[1752508112659,1.26757032,164.26,164.25,0.03]
[1752508113928,33.20757032,164.26,164.25,0.03]
[1752508114253,32.62757032,164.26,164.25,0.03]
[1752508114451,38.71547973,164.26,164.25,0.03]
[1752508114629,39.39547973,164.26,164.25,0.03]
[1752508115572,32.64757032,164.26,164.25,0.03]
[1752508115764,6.69547973,164.26,164.25,0.03]
[1752508116335,7.35547973,164.26,164.25,0.03]
[1752508117452,22.57525325,164.26,164.17,16.78468397]
[1752508117636,26.0,164.23,164.15,0.72]
[1752508117842,34.22127032,164.22,164.16,16.78468397]
[1752508118050,0.66,164.21,164.16,16.78468397]
[1752508118239,6.69796087,164.2,164.16,16.78468397]
[1752508118434,1.26757032,164.2,164.15,16.78468397]
[1752508118649,0.60757032,164.2,164.16,0.72]
[1752508118847,7.35776295,164.2,164.14,0.72]
[1752508119041,1.26757032,164.2,164.15,16.78468397]
[1752508119238,32.08,164.19,164.15,0.72]
[1752508119754,1.26757032,164.18,164.13,0.1]
[1752508119939,1.26757032,164.18,164.15,16.78468397]
[1752508119940,0.60757032,164.18,164.15,16.78468397]
[1752508120254,0.60757032,164.18,164.14,0.72]
[1752508120461,0.60757032,164.18,164.15,16.78468397]
[1752508120645,32.68757032,164.19,164.15,0.72]
[1752508120955,32.68757032,164.19,164.16,0.72]
[1752508120956,32.08,164.19,164.16,0.72]
[1752508121250,1.26757032,164.18,164.13,16.88468397]
[1752508121467,1.26757032,164.18,164.13,17.60468397]
[1752508121675,0.60757032,164.18,164.15,16.78468397]
[1752508121861,0.60757032,164.19,164.15,17.50468397]
[1752508122171,26.0,164.16,164.13,0.1]
[1752508122331,7.35955935,164.15,164.13,0.1]
[1752508122538,58.1,164.16,164.13,0.1]
[1752508122939,7.77637032,164.15,164.13,0.1]
[1752508123479,32.76,164.14,164.13,0.1]
[1752508123777,32.76,164.14,164.06,8.26553916]
[1752508123778,26.0,164.11,164.06,8.26553916]
[1752508123940,33.50757032,164.1,164.06,8.26553916]
[1752508124142,0.60757032,164.1,164.07,0.72]
[1752508124361,33.56,164.1,164.07,16.78468397]
[1752508124661,33.50757032,164.1,164.06,8.26553916]
[1752508124957,0.66,164.09,164.06,8.26553916]
[1752508125183,1.26757032,164.09,164.06,8.26553916]
[1752508125545,0.66,164.08,164.06,8.26553916]
[1752508125852,34.22757032,164.07,164.06,8.26553916]
[1752508126052,33.54757032,164.07,164.06,8.26553916]
[1752508126266,33.6,164.07,164.06,8.26553916]
[1752508126469,0.60757032,164.07,164.06,8.26553916]
[1752508126790,40.42252978,164.07,164.06,8.26553916]
[1752508126950,34.32757032,164.07,164.06,8.26553916]
[1752508127152,33.66757032,164.07,164.06,8.26553916]
[1752508127657,0.66,164.11,164.06,8.26553916]
[1752508127658,6.09417507,164.1,164.06,8.26553916]
[1752508127859,33.68757032,164.09,164.06,8.26553916]
[1752508128083,34.34757032,164.09,164.06,8.26553916]
[1752508128253,0.66,164.08,164.06,8.26553916]
[1752508128456,0.60757032,164.08,164.06,8.26553916]
[1752508129554,33.84757032,164.08,164.06,8.26553916]
[1752508129763,33.24,164.08,164.06,8.26553916]
[1752508130254,33.24,164.08,164.07,0.72]
[1752508130580,0.60757032,164.09,164.06,8.26553916]
[1752508130765,33.86757032,164.09,164.06,8.26553916]
[1752508131160,33.26,164.09,164.07,16.78468397]
[1752508131875,0.66,164.08,164.07,16.78468397]
[1752508132181,33.26,164.09,164.07,16.78468397]
[1752508132477,33.92,164.09,164.07,16.78468397]
[1752508132854,33.26,164.09,164.07,16.78468397]
[1752508133365,39.35422845,164.09,164.07,16.78468397]
[1752508133680,33.26,164.09,164.07,16.78468397]
[1752508134358,40.01429974,164.09,164.07,16.78468397]
[1752508134766,0.60757032,164.08,164.06,8.29553916]
[1752508135154,1.26757032,164.08,164.06,8.29553916]
[1752508135852,33.86757032,164.09,164.06,8.29553916]
[1752508136056,0.66,164.08,164.06,8.29553916]
[1752508136388,1.26757032,164.07,164.06,8.29553916]
[1752508136877,7.36252978,164.07,164.06,8.29553916]
[1752508137083,1.26757032,164.07,164.06,8.29553916]
[1752508137283,6.70252978,164.07,164.06,8.29553916]
[1752508137576,7.36252978,164.07,164.06,8.29553916]
[1752508137759,1.26757032,164.07,164.06,8.29553916]
[1752508137967,40.72252978,164.07,164.06,8.29553916]
[1752508138976,34.62757032,164.07,164.06,8.29553916]
[1752508139151,40.72252978,164.07,164.06,8.29553916]
[1752508139354,7.36252978,164.07,164.06,8.29553916]
[1752508139777,40.72252978,164.07,164.06,8.29553916]
[1752508140186,40.06252978,164.07,164.06,8.29553916]
[1752508140384,40.76252978,164.07,164.06,8.29553916]
[1752508140775,68.41072978,164.07,164.06,8.29553916]
[1752508140976,47.40195165,164.07,164.06,1e-08]
[1752508141177,26.0,163.99,163.92,455.84645384]
[1752508141385,34.66757032,163.98,163.92,455.84645384]
[1752508141593,33.36,163.97,163.92,455.84645384]
[1752508141903,1.30757032,163.96,163.92,455.84645384]
[1752508142080,0.60757032,163.96,163.92,455.84645384]
[1752508142280,26.0,163.99,163.94,16.78468397]
[1752508142594,34.24,163.98,163.93,16.78468397]